bitfinex/quotes_BTCUSD_20220115
["timestamp","ask_amount","ask_price","bid_price","bid_amount"]
[1642287861508,0.00086225,43300.0,43297.0,0.23001577]
[1642287861952,0.006,43299.0,43297.0,0.23001577]
[1642287863955,2.14999999,43298.0,43292.0,0.78299008]
[1642287864160,0.001,43299.0,43292.0,0.58259008]
[1642287864356,0.01317,43311.0,43292.0,0.58259008]
[1642287864556,0.00515723,43314.0,43293.0,6.876e-05]
[1642287864755,3.02747089,43323.0,43293.0,6.876e-05]
[1642287864756,1.226,43319.0,43293.0,6.876e-05]
[1642287864956,1.226,43319.0,43292.0,0.16737858]
[1642287864957,0.45217851,43318.0,43294.0,0.00123078]
[1642287865158,0.0517,43317.0,43294.0,0.00123078]
[1642287865354,0.43021615,43312.0,43295.0,0.26443657]
[1642287865601,2.22163445,43311.0,43294.0,0.00123078]
[1642287866001,0.18472757,43303.0,43294.0,0.00123078]
[1642287866202,0.0517,43302.0,43300.0,0.00033986]
[1642287866504,0.057734,43305.0,43300.0,0.00033986]
[1642287867101,0.6468,43307.0,43300.0,0.00033986]
[1642287867302,0.24876554,43308.0,43296.0,0.26799018]
[1642287867503,0.24876554,43308.0,43300.0,0.00033986]
[1642287867904,0.30649654,43308.0,43296.0,0.22343004]
[1642287868102,0.30649654,43308.0,43294.0,0.00123078]
[1642287868303,0.30149654,43308.0,43300.0,0.23]
[1642287868803,0.0517,43307.0,43300.0,0.23]
[1642287869003,0.27217836,43301.0,43300.0,0.23]
[1642287869202,0.32387836,43301.0,43300.0,0.23]
[1642287869453,0.32387836,43301.0,43300.0,0.225]
[1642287869853,0.0517,43301.0,43300.0,0.225]
[1642287870265,0.0517,43306.0,43300.0,0.225]
[1642287870456,0.45363323,43316.0,43300.0,0.225]
[1642287870756,0.0517,43315.0,43300.0,0.225]
[1642287870956,0.0517,43314.0,43300.0,0.225]
[1642287871156,0.0517,43313.0,43300.0,0.225]
[1642287871359,0.34389729,43306.0,43300.0,0.225]
[1642287871559,0.057737,43304.0,43300.0,0.225]
[1642287872959,0.057737,43304.0,43300.0,0.1804]
[1642287873603,0.49559729,43306.0,43300.0,0.1804]
[1642287874605,0.39559729,43306.0,43300.0,0.1804]
[1642287874803,0.49559729,43306.0,43300.0,0.1804]
[1642287876004,0.39559729,43306.0,43300.0,0.1804]
[1642287878154,0.39559729,43306.0,43300.0,0.1356]
[1642287878555,0.00086996,43308.0,43300.0,0.1356]
[1642287879156,0.115464,43312.0,43300.0,0.1356]
[1642287879357,0.00086998,43308.0,43300.0,0.1356]
[1642287879556,0.33322425,43307.0,43300.0,0.1356]
[1642287883108,0.33322425,43307.0,43300.0,0.0909]
[1642287883706,0.00087654,43308.0,43300.0,0.41143957]
[1642287884105,0.5897,43319.0,43300.0,0.51143956]
[1642287884354,0.58907283,43319.0,43304.0,0.00123455]
[1642287884556,0.1,43319.0,43304.0,0.00123455]
[1642287884758,0.31462695,43314.0,43309.0,0.29960501]
[1642287885154,0.1,43314.0,43309.0,0.29960501]
[1642287886157,0.057718,43318.0,43309.0,0.29960501]
[1642287886359,0.2648527,43316.0,43309.0,0.29960501]
[1642287887762,0.2648527,43316.0,43310.0,0.00070909]
[1642287888207,0.2648527,43316.0,43309.0,0.2552141]
[1642287889001,0.2648527,43316.0,43305.0,0.09999999]
[1642287889203,0.2648527,43316.0,43304.0,0.00123455]
[1642287889402,0.057718,43318.0,43304.0,0.00123455]
[1642287889403,0.32807319,43309.0,43305.0,0.23]
[1642287890004,0.42807319,43309.0,43305.0,0.23]
[1642287890203,0.32807319,43309.0,43305.0,0.23]
[1642287890403,0.42807319,43309.0,43305.0,2.13896517]
[1642287892056,0.057729,43311.0,43305.0,2.13896517]
[1642287892255,0.057723,43315.0,43305.0,2.13896517]
[1642287892658,0.057723,43315.0,43306.0,0.00070304]
[1642287893055,0.28715376,43310.0,43305.0,2.09496821]
[1642287894257,0.057723,43315.0,43305.0,2.09496821]
[1642287894556,0.109419,43319.0,43309.0,0.09999999]
[1642287895155,0.33787686,43315.0,43305.0,2.43449126]
[1642287895355,0.33787686,43315.0,43309.0,0.09926597]
[1642287895808,0.33287686,43315.0,43309.0,0.09926597]
[1642287896110,0.33287686,43315.0,43308.0,0.33343861]
[1642287896907,0.64951593,43319.0,43308.0,0.33343861]
[1642287897111,0.157719,43319.0,43308.0,0.33343861]
[1642287897312,0.1,43319.0,43308.0,0.33343861]
[1642287897511,0.0959336,43319.0,43309.0,0.09926597]
[1642287897811,0.59179693,43320.0,43310.0,0.00120447]
[1642287898211,0.59179693,43320.0,43309.0,0.05714496]
[1642287898212,0.33931419,43315.0,43309.0,0.05714496]
[1642287898412,0.59179693,43321.0,43309.0,0.05714496]
[1642287899012,0.59179693,43321.0,43317.0,0.00188127]
[1642287899456,0.52405856,43320.0,43317.0,0.00188127]
[1642287901058,0.62405856,43320.0,43317.0,0.00188127]
[1642287903213,0.52405856,43320.0,43315.0,0.22433465]
[1642287903818,0.52405856,43320.0,43317.0,0.00187968]
[1642287904217,0.30568834,43320.0,43317.0,0.00187968]
[1642287904516,0.40568834,43320.0,43317.0,0.00187968]
[1642287905515,0.00085427,43321.0,43317.0,0.00187968]
[1642287905718,0.59379693,43324.0,43320.0,0.65707429]
[1642287906017,0.59379693,43324.0,43323.0,0.50587044]
[1642287906421,0.002,43324.0,43323.0,0.50587044]
[1642287907461,0.002,43324.0,43323.0,0.74100496]
[1642287907660,0.002,43324.0,43323.0,0.50587044]
[1642287908263,0.002,43324.0,43322.0,0.50458679]
[1642287908463,0.002,43324.0,43321.0,0.02520026]
[1642287908464,0.002,43324.0,43323.0,0.0517]
[1642287908664,0.002,43324.0,43321.0,0.00120026]
[1642287908863,0.002,43324.0,43317.0,0.00187968]
[1642287909068,0.08882955,43322.0,43317.0,0.00187968]
[1642287909265,0.37738553,43321.0,43317.0,0.00187968]
[1642287909563,0.47738553,43321.0,43317.0,0.00187968]
[1642287910613,0.15257747,43321.0,43317.0,0.00187968]
[1642287910815,0.15257747,43321.0,43317.0,0.24305012]
[1642287910816,0.05257747,43321.0,43317.0,0.24305012]
[1642287911014,0.05257747,43321.0,43320.0,0.00121286]
[1642287911211,0.00087747,43321.0,43320.0,2.1623833]
[1642287911412,0.00236125,43323.0,43321.0,2.66646294]
[1642287911413,3.872e-05,43323.0,43321.0,2.66646294]
[1642287911619,0.31969453,43323.0,43321.0,2.99055825]
[1642287911813,0.0105336,43331.0,43330.0,2.57436055]
[1642287912014,0.7893259,43342.0,43331.0,2.15]
[1642287912215,0.4503,43345.0,43339.0,2.15]
[1642287912416,0.4503,43345.0,43344.0,0.00125914]
[1642287912615,0.003,43355.0,43344.0,2.15125914]
[1642287912818,0.006,43359.0,43352.0,0.01117044]
[1642287913020,0.4503,43364.0,43352.0,0.01117044]
[1642287913021,0.984061,43362.0,43358.0,0.0012601]
[1642287913218,0.78872285,43359.0,43356.0,0.00122241]
[1642287913416,0.78872285,43359.0,43348.0,0.01117044]
[1642287913615,0.78872285,43359.0,43346.0,0.0012365]
[1642287913820,0.78872285,43359.0,43355.0,0.25486858]
[1642287914016,0.29216041,43358.0,43355.0,0.25486858]
[1642287914462,0.29216041,43358.0,43346.0,0.0012365]
[1642287914657,0.28564773,43357.0,43346.0,0.0012365]
[1642287914857,0.23513452,43356.0,43340.0,0.00121234]
[1642287915259,0.28261044,43345.0,43340.0,0.00121234]
[1642287915459,0.24143503,43344.0,43340.0,0.00121234]
[1642287915658,0.24143503,43344.0,43340.0,0.01238278]
[1642287916657,0.24236836,43344.0,43340.0,0.01238278]
[1642287917658,0.24143503,43344.0,43340.0,0.01238278]
[1642287917860,0.24236836,43344.0,43340.0,0.01238278]
[1642287918310,0.24236836,43344.0,43338.0,1.98432642]
[1642287918311,0.22544866,43344.0,43338.0,1.95332228]
[1642287918515,0.00093333,43344.0,43338.0,1.95332228]
[1642287918912,0.28247259,43352.0,43338.0,1.95332228]
[1642287919115,0.00093334,43343.0,43338.0,1.95332228]
[1642287920115,0.22268819,43345.0,43338.0,1.95332228]
[1642287920319,0.00093334,43343.0,43338.0,1.95332228]
[1642287920718,0.00093334,43343.0,43338.0,2.18332228]
[1642287921318,0.33025984,43345.0,43338.0,2.18332228]
[1642287921519,0.00093334,43343.0,43338.0,2.18332228]
[1642287921960,0.33025984,43345.0,43339.0,2.05]
[1642287922361,0.00373281,43349.0,43339.0,2.05]
[1642287922562,0.6562,43354.0,43339.0,2.05]
[1642287922769,0.0461,43353.0,43339.0,2.05]
[1642287922965,0.103772,43353.0,43339.0,2.05]
[1642287923167,0.103772,43353.0,43339.0,2.0054]
[1642287924563,0.29870021,43347.0,43339.0,2.0054]
[1642287924770,0.29870021,43347.0,43338.0,2.18332228]
[1642287926316,0.00093331,43345.0,43338.0,2.18332228]
[1642287927325,0.29870021,43347.0,43338.0,2.18332228]
[1642287927518,0.0009333,43345.0,43338.0,2.18332228]
[1642287928318,0.0009333,43345.0,43338.0,2.13872228]
[1642287928521,0.29870021,43347.0,43338.0,2.13872228]
[1642287928821,0.0009333,43345.0,43338.0,2.13872228]
[1642287929663,0.34480021,43347.0,43338.0,2.13872228]
[1642287929862,0.0009333,43345.0,43338.0,2.13872228]
[1642287930959,0.34480021,43347.0,43338.0,2.13872228]
[1642287931159,0.0009333,43345.0,43338.0,2.13872228]
[1642287932059,0.34480021,43347.0,43338.0,2.13872228]
[1642287932262,0.0009333,43345.0,43338.0,2.13872228]
[1642287933314,0.34480021,43347.0,43338.0,2.09402228]
[1642287933514,0.0009333,43345.0,43338.0,2.09402228]
[1642287933915,0.0009333,43345.0,43339.0,0.22228184]
[1642287934416,0.0009333,43345.0,43339.0,0.65894477]
[1642287934618,0.00093331,43345.0,43343.0,0.00120205]
[1642287935217,0.00093331,43345.0,43338.0,2.09402228]
[1642287935615,0.057675,43350.0,43338.0,2.09402228]
[1642287935817,0.29976113,43343.0,43338.0,2.09402228]
[1642287936015,0.0009333,43345.0,43338.0,2.09402228]
[1642287936718,0.0461,43344.0,43338.0,0.23]
[1642287937172,2.1,43343.0,43336.0,0.004136]
[1642287937371,0.28841164,43342.0,43336.0,0.004136]
[1642287937577,0.412,43338.0,43336.0,0.004136]
[1642287937771,0.0461,43337.0,43336.0,0.004136]
[1642287938374,0.0461,43337.0,43330.0,0.00072021]
[1642287938772,0.2738174,43336.0,43330.0,0.00072021]
[1642287938974,0.38653826,43335.0,43330.0,0.00072021]
[1642287939172,0.89853826,43335.0,43330.0,0.00072021]
[1642287939372,0.89853826,43335.0,43322.0,1.277]
[1642287939572,0.89853826,43335.0,43330.0,0.00072025]
[1642287941027,0.89853826,43335.0,43330.0,0.23072025]
[1642287941724,0.89853826,43335.0,43330.0,0.23]
[1642287941925,0.89853826,43335.0,43330.0,0.23072025]
[1642287942326,0.89853826,43335.0,43330.0,0.00072025]
[1642287942926,0.057699,43333.0,43322.0,1.277]
[1642287943125,0.3138723,43332.0,43330.0,0.00072025]
[1642287943329,0.24177389,43331.0,43322.0,1.23402025]
[1642287943525,0.0461,43330.0,43322.0,1.23402025]
[1642287943725,0.0461,43330.0,43322.0,0.9753]
[1642287943926,0.0461,43330.0,43323.0,1.83486367]
[1642287944127,0.27448592,43327.0,43323.0,1.83486367]
[1642287944368,0.0461,43326.0,43323.0,1.83486367]
[1642287946367,0.0461,43326.0,43323.0,1.83608141]
[1642287948322,0.0461,43326.0,43323.0,1.79148141]
[1642287951868,0.0461,43326.0,43323.0,1.80148141]
[1642287953270,0.0461,43326.0,43323.0,1.75638141]
[1642287954970,0.0461,43326.0,43323.0,1.75138141]
[1642287955371,0.0458222,43326.0,43323.0,1.75138141]
[1642287958315,0.0458222,43326.0,43323.0,1.70678141]
[1642287960564,0.27619024,43329.0,43323.0,1.70678141]
[1642287960769,0.0461,43331.0,43323.0,1.70678141]
[1642287961165,0.0461,43331.0,43324.0,0.00071409]
[1642287961369,0.0461,43331.0,43329.0,0.33210863]
[1642287961569,0.00093327,43338.0,43329.0,0.33210863]
[1642287962067,0.78951534,43340.0,43329.0,0.43332228]
[1642287962268,0.00093337,43338.0,43329.0,0.33332228]
[1642287962468,0.00093337,43338.0,43332.0,0.33002285]
[1642287962867,0.25540005,43337.0,43332.0,0.33002285]
[1642287963107,0.00093337,43338.0,43332.0,0.33002285]
[1642287963311,0.23951534,43340.0,43332.0,0.28522285]
[1642287963510,0.00093338,43338.0,43332.0,0.28522285]
[1642287963909,0.00093338,43338.0,43337.0,0.70253923]
[1642287964514,0.0461,43342.0,43337.0,0.70253923]
[1642287964713,0.00093337,43340.0,43337.0,0.70253923]
[1642287965614,0.00093337,43340.0,43337.0,0.69753923]
[1642287965818,0.0461,43342.0,43337.0,0.69753923]
[1642287966016,0.157679,43349.0,43338.0,0.23876764]
[1642287966017,0.00093336,43341.0,43338.0,0.23876764]
[1642287966217,0.00093336,43341.0,43340.0,0.00125971]
[1642287966616,0.21636745,43353.0,43340.0,0.00125971]
[1642287966863,0.08191,43354.0,43345.0,0.28387023]
[1642287967261,0.03581,43354.0,43345.0,0.28387023]
[1642287968061,0.03581,43354.0,43352.0,0.31194446]
[1642287968062,0.03081,43354.0,43352.0,0.31194446]
[1642287968466,0.03081,43354.0,43352.0,0.26664446]
[1642287970064,0.03081,43354.0,43348.0,2.09721933]
[1642287970712,0.00093324,43353.0,43348.0,2.09721933]
[1642287971115,0.00093324,43353.0,43348.0,2.10721933]
[1642287971314,0.00093324,43353.0,43349.0,0.31247048]
[1642287971714,0.31592943,43356.0,43349.0,0.31247048]
[1642287972013,0.00093324,43353.0,43349.0,0.30747048]
[1642287973014,0.31592943,43356.0,43349.0,0.30747048]
[1642287973212,0.00065542,43353.0,43349.0,0.30747048]
[1642287973414,0.00065542,43353.0,43349.0,0.26247048]
[1642287974215,0.31592943,43356.0,43349.0,0.26247048]
[1642287976667,0.00093321,43355.0,43349.0,0.26247048]
[1642287977768,0.26495796,43360.0,43349.0,0.26247048]
[1642287978110,0.00093321,43355.0,43349.0,0.26247048]
[1642287978410,0.26068083,43351.0,43349.0,0.21777048]
[1642287978613,0.23655274,43350.0,43348.0,0.01]
[1642287978821,0.23776501,43350.0,43348.0,0.01]
[1642287979013,0.00586661,43349.0,43337.0,0.00275083]
[1642287979216,0.0461,43348.0,43346.0,0.00075739]
[1642287979412,0.0461,43348.0,43337.0,0.00275083]
[1642287979611,0.0461,43348.0,43338.0,0.52684802]
[1642287979612,0.71373115,43339.0,43338.0,0.52684802]
[1642287979813,0.00127279,43345.0,43338.0,0.52684802]
[1642287980012,0.0517,43344.0,43338.0,0.52684802]
[1642287980712,0.057687,43342.0,43338.0,0.52684802]
[1642287980912,0.0517,43341.0,43338.0,0.52684802]
[1642287981113,0.22844142,43340.0,43338.0,0.52684802]
[1642287981318,1.1517,43339.0,43338.0,0.52684802]
[1642287981514,0.1517,43339.0,43338.0,0.52684802]
[1642287981862,0.71795586,43339.0,43338.0,0.52684802]
[1642287983663,2.56795586,43339.0,43338.0,0.48184802]
[1642287984162,0.71795586,43339.0,43338.0,0.48184802]
[1642287984961,1.41795586,43339.0,43338.0,0.48184802]
[1642287986214,0.71795586,43339.0,43338.0,0.48184802]
[1642287986619,1.12995586,43339.0,43338.0,0.48184802]
[1642287988516,1.92995586,43339.0,43338.0,0.43714802]
[1642287988917,1.12995586,43339.0,43338.0,0.43714802]
[1642287989769,1.52995586,43339.0,43338.0,0.43714802]
[1642287990667,1.12995586,43339.0,43338.0,0.43714802]
[1642287991867,1.77995586,43339.0,43338.0,0.43714802]
[1642287992267,1.12995586,43339.0,43338.0,0.43714802]
[1642287992866,1.52995586,43339.0,43338.0,0.43714802]
[1642287993619,2.27995586,43339.0,43338.0,0.39144802]
[1642287994424,2.2812542,43339.0,43338.0,0.39144802]
[1642287996226,1.1312542,43339.0,43338.0,0.39144802]
[1642287996871,1.9312542,43339.0,43338.0,0.39144802]
[1642287997063,1.9312542,43339.0,43321.0,0.58548634]
[1642287997064,0.00128179,43327.0,43321.0,0.58548634]
[1642287997266,0.00123364,43322.0,43321.0,0.58548634]
[1642287997463,1.15293364,43322.0,43321.0,0.58548634]
[1642287997662,1.25241364,43322.0,43321.0,0.58548634]
[1642287997863,1.25290412,43322.0,43321.0,0.58548634]
[1642287998061,1.544118,43322.0,43321.0,0.58548634]
[1642287998261,1.544118,43322.0,43319.0,0.0007513]
[1642287998668,0.0517,43322.0,43317.0,0.32603877]
[1642287999063,0.0517,43322.0,43315.0,0.23437486]
[1642287999664,0.0517,43322.0,43315.0,0.56244863]
[1642288000166,0.0517,43322.0,43313.0,1.9903946]
[1642288000364,0.0417,43322.0,43313.0,0.0005297]
[1642288000613,0.0417,43322.0,43312.0,0.9826297]
[1642288001216,0.25054158,43317.0,43313.0,0.58548634]
[1642288001515,0.0517,43316.0,43313.0,0.58548634]
[1642288001717,0.0517,43315.0,43312.0,0.9826297]
[1642288001915,0.0517,43315.0,43313.0,0.2192102]
[1642288002415,0.51554186,43323.0,43316.0,0.1034]
[1642288002615,0.0517,43322.0,43316.0,0.1034]
[1642288003216,0.0517,43322.0,43317.0,0.00082962]
[1642288003615,0.26785993,43320.0,43317.0,0.00082962]
[1642288003916,0.0517,43319.0,43316.0,0.05912962]
[1642288008717,0.0517,43319.0,43316.0,0.01442962]
[1642288011321,0.00194586,43323.0,43316.0,0.01442962]
[1642288011521,0.0517,43322.0,43316.0,0.01442962]
[1642288012165,0.0517,43322.0,43316.0,0.25659915]
[1642288013770,0.0267,43322.0,43316.0,0.21189915]
[1642288017514,0.0267,43322.0,43317.0,2.18989488]
[1642288017713,0.0267,43322.0,43316.0,0.21189915]
[1642288018714,0.0267,43322.0,43316.0,0.16729915]
[1642288019360,0.0267,43322.0,43315.0,0.00073729]
[1642288019761,0.0267,43322.0,43312.0,1.56811604]
[1642288019962,0.0267,43322.0,43315.0,0.0007373]
[1642288020361,0.33498682,43316.0,43315.0,0.0007373]
[1642288020567,0.33498682,43316.0,43315.0,1.0007373]
[1642288020762,0.33498682,43316.0,43315.0,0.0007373]
[1642288021065,0.115446,43319.0,43316.0,0.35177102]
[1642288021764,0.33614956,43318.0,43316.0,0.35177102]
[1642288023827,0.33614956,43318.0,43316.0,0.30717102]
[1642288028964,0.33614956,43318.0,43316.0,0.26237102]
[1642288032817,0.109422,43320.0,43316.0,0.26237102]
[1642288033418,0.0517,43320.0,43316.0,0.26237102]
[1642288033817,0.30401782,43319.0,43316.0,0.21757102]
[1642288034219,0.35571782,43319.0,43316.0,0.21757102]
[1642288037676,0.0517,43319.0,43316.0,0.21757102]
[1642288037876,0.0467,43319.0,43316.0,0.21757102]
[1642288038917,0.0467,43319.0,43316.0,0.17277102]
[1642288040117,0.104419,43319.0,43316.0,0.17277102]
[1642288043966,0.104419,43319.0,43316.0,0.12817102]
[1642288048114,0.104419,43319.0,43316.0,0.71365736]
[1642288048718,0.104419,43319.0,43316.0,0.12817102]
[1642288048920,0.104419,43319.0,43316.0,0.08317102]
[1642288053214,0.16213927,43319.0,43316.0,0.08317102]
[1642288053618,0.16213927,43319.0,43316.0,0.66865736]
[1642288054018,0.16213927,43319.0,43316.0,0.62385736]
[1642288054215,0.16213927,43319.0,43316.0,0.03837102]
[1642288054516,0.104419,43319.0,43316.0,0.03837102]
[1642288055517,0.104419,43319.0,43316.0,0.62385736]
[1642288057567,0.06139772,43319.0,43316.0,0.62385736]
[1642288058570,0.05907426,43319.0,43316.0,0.62385736]
[1642288058969,0.05907426,43319.0,43316.0,0.57915736]
[1642288059670,0.05907426,43319.0,43315.0,0.00056678]
[1642288060472,0.05907426,43319.0,43313.0,0.67822953]
[1642288060718,0.05907426,43319.0,43315.0,0.00056678]
[1642288061820,0.05907426,43319.0,43313.0,0.67822953]
[1642288062018,0.05907426,43319.0,43315.0,0.00056678]
[1642288062216,0.0467,43319.0,43315.0,0.00056678]
[1642288062616,0.0467,43319.0,43314.0,1.66160601]
[1642288062816,0.0467,43319.0,43314.0,0.67379631]
[1642288064018,0.0467,43319.0,43314.0,0.62919631]
[1642288064870,0.0467,43319.0,43314.0,1.6169959]
[1642288065266,0.0467,43319.0,43314.0,0.62919631]
[1642288066669,0.04757122,43319.0,43314.0,0.62919631]
[1642288067472,0.04757122,43319.0,43316.0,0.58595689]
[1642288067672,0.0467,43319.0,43316.0,0.58595689]
[1642288068919,0.0467,43319.0,43316.0,0.54125689]
[1642288074071,0.0467,43319.0,43316.0,0.49665689]
[1642288076720,0.104418,43319.0,43316.0,0.49665689]
[1642288079022,0.104418,43319.0,43316.0,0.45205689]
[1642288080968,0.05772135,43318.0,43316.0,0.45205689]
[1642288083224,0.10528838,43319.0,43316.0,0.45205689]
[1642288083424,0.0467,43319.0,43316.0,0.45205689]
[1642288083623,0.04757038,43319.0,43316.0,0.45205689]
[1642288084024,0.04757038,43319.0,43316.0,0.40735689]
[1642288084625,0.0467,43319.0,43316.0,0.40735689]
[1642288086528,0.0467,43319.0,43316.0,0.40235689]
[1642288087966,0.104418,43319.0,43316.0,0.40235689]
[1642288088866,0.104418,43319.0,43315.0,0.62919631]
[1642288089066,0.104418,43319.0,43315.0,0.58429631]
[1642288089467,0.10528822,43319.0,43313.0,0.98838553]
[1642288089868,0.10528822,43319.0,43314.0,0.98782223]
[1642288090471,0.104418,43319.0,43314.0,0.98782223]
[1642288090720,0.05772173,43318.0,43314.0,0.98782223]
[1642288091723,0.05765173,43318.0,43314.0,0.98782223]
[1642288091921,0.10528821,43319.0,43314.0,0.98782223]
[1642288093023,0.104418,43319.0,43314.0,0.98782223]
[1642288093225,0.1052882,43319.0,43314.0,0.98782223]
[1642288093926,0.1050282,43319.0,43313.0,0.00056326]
[1642288094126,0.104158,43319.0,43312.0,0.93839296]
[1642288094375,0.1050282,43319.0,43313.0,0.00056326]
[1642288094776,0.1050282,43319.0,43315.0,0.58653723]
[1642288094978,0.30972604,43319.0,43315.0,0.58653723]
[1642288095177,0.2042389,43319.0,43315.0,0.58653723]
[1642288095382,0.40628812,43319.0,43315.0,0.58653723]
[1642288095780,0.40628812,43319.0,43316.0,0.1966544]
[1642288096579,0.40628812,43319.0,43316.0,0.1916544]
[1642288097382,0.2033687,43319.0,43316.0,0.1916544]
[1642288097584,0.0467,43319.0,43317.0,0.2088339]
[1642288097987,0.0467,43319.0,43316.0,0.1916544]
[1642288098615,0.0467,43319.0,43317.0,0.58653723]
[1642288099218,0.0467,43319.0,43317.0,0.54103723]
[1642288100525,0.0417,43319.0,43317.0,0.54103723]
[1642288100718,0.00087071,43320.0,43317.0,0.54103723]
[1642288101319,0.41099206,43322.0,43317.0,0.54103723]
[1642288101519,0.0008707,43321.0,43317.0,0.54103723]
[1642288102574,0.00194586,43323.0,43317.0,0.54103723]
[1642288102777,0.3747528,43326.0,43318.0,1.55]
[1642288102976,0.4747528,43326.0,43318.0,1.55]
[1642288103179,0.4747528,43326.0,43316.0,0.87586209]
[1642288103776,0.4747528,43326.0,43317.0,0.68420769]
[1642288103975,0.00194586,43323.0,43317.0,0.68420769]
[1642288104175,0.00194586,43323.0,43317.0,0.63940769]
[1642288104578,0.00194586,43323.0,43316.0,0.83106209]
[1642288105177,0.00246743,43323.0,43316.0,0.83106209]
[1642288106119,0.00194586,43323.0,43320.0,0.25037734]
[1642288106319,0.115403,43335.0,43322.0,2.1]
[1642288106619,0.00208563,43336.0,43333.0,0.00125881]
[1642288107318,0.31135053,43337.0,43333.0,0.30070405]
[1642288108322,0.41135053,43337.0,43333.0,0.30070405]
[1642288108718,0.41135053,43337.0,43328.0,0.24089138]
[1642288109119,0.41135053,43337.0,43336.0,0.00267917]
[1642288109386,0.41135053,43337.0,43327.0,0.58594746]
[1642288109786,0.41135053,43337.0,43329.0,0.27317191]
[1642288109988,0.05821641,43334.0,43329.0,0.27317191]
[1642288110894,0.057697,43334.0,43329.0,0.27317191]
[1642288111189,0.05863043,43334.0,43329.0,0.27317191]
[1642288111991,0.00093343,43334.0,43329.0,0.27317191]
[1642288113323,0.41135053,43337.0,43329.0,0.27317191]
[1642288113526,0.00093343,43334.0,43329.0,0.27317191]
[1642288114325,0.00093343,43334.0,43329.0,0.22857191]
[1642288114526,0.41135053,43337.0,43329.0,0.22857191]
[1642288114725,0.00093343,43334.0,43329.0,0.22857191]
[1642288115823,0.41135053,43337.0,43329.0,0.22857191]
[1642288116024,0.00093343,43334.0,43329.0,0.22857191]
[1642288116868,0.31135053,43337.0,43329.0,0.22857191]
[1642288117068,0.00093343,43334.0,43329.0,0.22857191]
[1642288118070,0.31135053,43337.0,43329.0,0.22857191]
[1642288118271,0.00093343,43334.0,43329.0,0.22857191]
[1642288119271,0.31135053,43337.0,43329.0,0.18377191]
[1642288119472,0.00093343,43334.0,43329.0,0.18377191]
[1642288120472,0.31135053,43337.0,43329.0,0.18377191]
[1642288120722,0.00093343,43334.0,43329.0,0.18377191]
[1642288121721,0.41135053,43337.0,43329.0,0.18377191]
[1642288121918,0.00093343,43334.0,43329.0,0.18377191]
[1642288122920,0.41135053,43337.0,43329.0,0.18377191]
[1642288123121,0.00093343,43334.0,43329.0,0.18377191]
[1642288124226,0.41135053,43337.0,43329.0,0.18377191]
[1642288124468,0.00093343,43334.0,43329.0,0.13907191]
[1642288125272,0.41135053,43337.0,43329.0,0.13907191]
[1642288125471,0.00093343,43334.0,43329.0,0.13907191]
[1642288126473,0.41135053,43337.0,43329.0,0.13907191]
[1642288126674,0.00093343,43334.0,43329.0,0.13907191]
[1642288127675,0.41135053,43337.0,43329.0,0.13907191]
[1642288128123,0.00093343,43334.0,43329.0,0.13907191]
[1642288128924,0.41135053,43337.0,43329.0,0.13907191]
[1642288129125,0.41135053,43337.0,43336.0,0.00245591]
[1642288129327,0.41135053,43337.0,43329.0,0.09652782]
[1642288130125,0.31135053,43337.0,43329.0,0.09652782]
[1642288130327,0.00093341,43335.0,43329.0,0.09652782]
[1642288131428,0.36904453,43337.0,43329.0,0.09652782]
[1642288131629,0.00093342,43334.0,43329.0,0.09652782]
[1642288132472,0.36904453,43337.0,43329.0,0.09652782]
[1642288132673,0.00093343,43334.0,43327.0,0.00127864]
[1642288133673,0.46904453,43337.0,43327.0,0.00127864]
[1642288133874,0.00093344,43333.0,43327.0,0.00127864]
[1642288134474,0.00093344,43333.0,43329.0,0.195588]
[1642288134873,0.46904453,43337.0,43329.0,0.195588]
[1642288135374,0.00093343,43333.0,43329.0,0.195588]
[1642288136219,0.46904453,43337.0,43329.0,0.195588]
[1642288136420,0.00093343,43333.0,43329.0,0.195588]
[1642288137323,0.1,43337.0,43329.0,0.195588]
[1642288137620,0.00093343,43333.0,43329.0,0.195588]
[1642288138618,0.25785557,43335.0,43329.0,0.195588]
[1642288138819,0.00093343,43333.0,43329.0,0.195588]
[1642288139571,0.00093343,43333.0,43329.0,0.150588]
[1642288139771,0.25785557,43335.0,43329.0,0.150588]
[1642288139976,0.00093343,43333.0,43329.0,0.150588]
[1642288142175,0.25785557,43335.0,43329.0,0.150588]
[1642288142375,0.00093343,43333.0,43329.0,0.150588]
[1642288143421,0.25785557,43335.0,43329.0,0.150588]
[1642288143617,0.00093343,43333.0,43329.0,0.150588]
[1642288144416,0.00093343,43333.0,43329.0,0.105788]
[1642288144616,0.25785557,43335.0,43329.0,0.095788]
[1642288144817,0.00093343,43333.0,43329.0,0.095788]
[1642288145818,0.25785557,43335.0,43329.0,0.095788]
[1642288146018,0.00093343,43333.0,43329.0,0.095788]
[1642288146419,0.00093343,43333.0,43330.0,0.19998429]
[1642288146718,0.00093343,43333.0,43329.0,0.095788]
[1642288146978,0.25785557,43335.0,43329.0,0.095788]
[1642288147179,0.00093343,43334.0,43329.0,0.095788]
[1642288148079,0.25785557,43335.0,43329.0,0.095788]
[1642288148280,0.00093343,43334.0,43329.0,0.095788]
[1642288149382,0.25785557,43335.0,43329.0,0.095788]
[1642288149583,0.00093343,43334.0,43329.0,0.050788]
[1642288150627,0.25785557,43335.0,43329.0,0.050788]
[1642288150923,0.00093343,43334.0,43329.0,0.050788]
[1642288151125,0.00093343,43334.0,43330.0,0.58466882]
[1642288151822,0.00625716,43337.0,43330.0,0.58466882]
[1642288152023,0.00093342,43334.0,43330.0,0.58466882]
[1642288152222,0.00093342,43334.0,43330.0,0.7857287]
[1642288153029,0.30149271,43336.0,43330.0,0.7857287]
[1642288153225,0.00093342,43334.0,43330.0,0.58466882]
[1642288154228,0.30149271,43336.0,43330.0,0.58466882]
[1642288154473,0.00093342,43334.0,43330.0,0.53996882]
[1642288154978,0.00093342,43334.0,43329.0,0.24825311]
[1642288155174,0.00093342,43334.0,43329.0,0.92970945]
[1642288155374,0.30149271,43336.0,43329.0,0.73224434]
[1642288155680,0.00093343,43334.0,43329.0,1.71966129]
[1642288155875,0.00093343,43334.0,43330.0,0.19744226]
[1642288156075,0.00093343,43334.0,43329.0,1.71966129]
[1642288156474,0.30149271,43336.0,43330.0,0.19657662]
[1642288156676,0.00093343,43334.0,43329.0,0.73224434]
[1642288157675,0.30149271,43336.0,43329.0,0.73224434]
[1642288157875,0.00093343,43334.0,43329.0,0.73224434]
[1642288158923,0.30149271,43336.0,43329.0,0.73224434]
[1642288159124,0.00093343,43334.0,43329.0,0.73224434]
[1642288159627,0.00093343,43334.0,43329.0,0.68744434]
[1642288160228,0.30149271,43336.0,43329.0,0.68744434]